fUST/lending_fUST_20260426
["ID","MTS","AMOUNT","RATE_DAILY","PERIOD"]
[421155732,1777180242227,-323.063276,0.00013699,2]
[421155733,1777180242236,-323.063276,0.00013699,2]
[421155734,1777180242245,-323.063276,0.00013699,2]
[421155735,1777180242254,-323.063276,0.00013699,2]
[421155736,1777180242263,-323.063276,0.00013699,2]
[421155737,1777180242273,-323.063276,0.00013699,2]
[421155738,1777180242282,-323.063276,0.00013699,2]
[421155739,1777180242291,-323.063276,0.00013699,2]
[421155740,1777180242300,-323.063276,0.00013699,2]
[421155741,1777180242310,-323.063276,0.00013699,2]
[421155742,1777180242319,-323.063276,0.00013699,2]
[421155743,1777180242328,-323.063276,0.00013699,2]
[421155744,1777180242338,-323.063276,0.00013699,2]
[421155745,1777180242347,-323.063276,0.00013699,2]
[421155746,1777180242356,-323.063276,0.00013699,2]
[421155747,1777180242365,-323.063276,0.00013699,2]
[421155748,1777180242375,-323.063273,0.00013699,2]
[421155749,1777180242385,-151.0,0.00013699,2]
[421155750,1777180242394,-264.701519,0.00013699,2]
[421155751,1777180242403,-312.051092,0.00013699,2]
[421155752,1777180242412,-312.051092,0.00013699,2]
[421155753,1777180242422,-312.051092,0.00013699,2]
[421155754,1777180242431,-312.051092,0.00013699,2]
[421155755,1777180242440,-312.051092,0.00013699,2]
[421155756,1777180242449,-312.051092,0.00013699,2]
[421155757,1777180242459,-312.051092,0.00013699,2]
[421155758,1777180242469,-312.051092,0.00013699,2]
[421155759,1777180242478,-312.051092,0.00013699,2]
[421155760,1777180242487,-312.051092,0.00013699,2]
[421155761,1777180242497,-312.051092,0.00013699,2]
[421155762,1777180242506,-312.051092,0.00013699,2]
[421155763,1777180242516,-312.051092,0.00013699,2]
[421155764,1777180242526,-312.051092,0.00013699,2]
[421155765,1777180242535,-312.051092,0.00013699,2]
[421155766,1777180242544,-312.051092,0.00013699,2]
[421155767,1777180242554,-312.051092,0.00013699,2]
[421155768,1777180242563,-312.051092,0.00013699,2]
[421155769,1777180242572,-312.051092,0.00013699,2]
[421155770,1777180242583,-312.051086,0.00013699,2]
[421155771,1777180242592,-151.0,0.00013699,2]
[421155772,1777180242601,-151.0,0.00013699,2]
[421155773,1777180242610,-156.97377,0.00013699,2]
[421155774,1777180242620,-287.961218,0.00013699,2]
[421155775,1777180242629,-287.961218,0.00013699,2]
[421155776,1777180242638,-287.961218,0.00013699,2]
[421155777,1777180242647,-287.961218,0.00013699,2]
[421155778,1777180242657,-287.961218,0.00013699,2]
[421155779,1777180242666,-287.961218,0.00013699,2]
[421155780,1777180242676,-287.961218,0.00013699,2]
[421155781,1777180242685,-287.961218,0.00013699,2]
[421155782,1777180242694,-287.961218,0.00013699,2]
[421155783,1777180242703,-287.961218,0.00013699,2]
[421155784,1777180242712,-287.961218,0.00013699,2]
[421155785,1777180242722,-287.961218,0.00013699,2]
[421155786,1777180242731,-151.0,0.00013699,2]
[421155787,1777180242740,-287.961218,0.00013699,2]
[421155788,1777180242749,-151.0,0.00013699,2]
[421155789,1777180242758,-287.961218,0.00013699,2]
[421155790,1777180242767,-151.0,0.00013699,2]
[421155791,1777180242776,-287.961218,0.00013699,2]
[421155792,1777180242786,-151.0,0.00013699,2]
[421155793,1777180242795,-287.961218,0.00013699,2]
[421155794,1777180242804,-151.0,0.00013699,2]
[421155795,1777180242814,-287.961218,0.00013699,2]
[421155796,1777180242826,-281.58422761,0.00013699,2]
[421155797,1777180242835,-287.961218,0.00013699,2]
[421155798,1777180242845,-287.961218,0.00013699,2]
[421155799,1777180242854,-287.961216,0.00013699,2]
[421155800,1777180242863,-1000.0,0.00013699,2]
[421155801,1777180242872,-151.4090701,0.0001371,2]
[421155802,1777180242881,-500.0,0.00013722,2]
[421155803,1777180242890,-155.0,0.00013782,2]
[421155804,1777180242900,-12348.53470845,0.00013796,2]
[421155805,1777180242909,-1000.0,0.00013845,2]
[421155806,1777180242919,-500.0,0.00013866,2]
[421155807,1777180242927,-155.0,0.00013871,2]
[421155808,1777180242936,-283.8451054,0.00013874,2]
[421155809,1777180242946,-155.0,0.00013961,2]
[421155810,1777180242955,-500.0,0.00013996,2]
[421155811,1777180242964,-12712.36817144,0.00013996,2]
[421155812,1777180242974,-393.33287447,0.00014,2]
[421155813,1777180242983,-155.0,0.0001405,2]
[421155814,1777180242993,-500.0,0.00014083,2]
[421155815,1777180243002,-12770.78868603,0.00014096,2]
[421155817,1777180243012,-155.0,0.0001414,2]
[421155819,1777180243021,-213.44818102,0.00014195,2]
[421155821,1777180243030,-12829.20920061,0.00014196,2]
[421155822,1777180243039,-155.0,0.00014229,2]
[421155824,1777180243049,-249.69119673,0.00014235,2]
[421155825,1777180243058,-396.28568223,0.00014266,2]
[421155827,1777180243067,-511.97761818,0.0001427,2]
[421155829,1777180243077,-12885.57879421,0.00014296,2]
[421155831,1777180243086,-155.0,0.00014319,2]
[421155833,1777180243096,-12943.98990234,0.00014396,2]
[421155834,1777180243105,-155.0,0.00014408,2]
[421155835,1777180243114,-283.8451054,0.00014423,2]
[421155837,1777180243123,-225.06,0.00014475,2]
[421155838,1777180243132,-155.0,0.00014498,2]
[421155839,1777180243142,-223.4,0.00014507,2]
[421155840,1777180243151,-205.61262714,0.00014516,2]
[421155841,1777180243160,-325.1214572,0.00014526,2]
[421155842,1777180243169,-241.8498068,0.00014526,2]
[421155843,1777180243179,-151.7661709,0.00014532,2]
[421155844,1777180243189,-225.15,0.00014573,2]
[421155845,1777180243198,-155.0,0.00014587,2]
[421155846,1777180243207,-233.67,0.00014662,2]
[421155847,1777180243216,-155.0,0.00014677,2]
[421155848,1777180243226,-155.0,0.00014766,2]
[421155850,1777180243235,-236.78,0.00014772,2]
[421155852,1777180243245,-239.87,0.000149,2]
[421155853,1777180243254,-283.8451054,0.00014971,2]
[421155855,1777180243264,-160.0,0.00014998,2]
[421155857,1777180243274,-3511.139331,0.00014998,2]
[421155859,1777180243283,-6862.278662,0.00014998,2]
[421155861,1777180243292,-200.29900402,0.00015,2]
[421155863,1777180243302,-1008.0,0.00015,2]
[421155864,1777180243312,-587.54427166,0.00015,3]
[421155865,1777180243321,-244.42,0.00015001,2]
[421155866,1777180243330,-246.51,0.00015001,2]
[421155867,1777180243340,-1000.0,0.0001523,2]
[421155868,1777180243349,-244.0,0.0001523,2]
[421155869,1777180243359,-160.0,0.00015278,3]
[421155870,1777180243368,-160.0,0.00015304,2]
[421155871,1777180243378,-7702.721646,0.00015304,2]
[421155872,1777180243388,-15245.443293,0.00015304,2]
[421155873,1777180243398,-467.491221,0.00015345,2]
[421155874,1777180243408,-281.0110984,0.0001535,2]
[421155875,1777180243418,-181.63,0.00015397,2]
[421155876,1777180243427,-792.0,0.000154,2]
[421155877,1777180243436,-1184.0,0.00015476,2]
[421155878,1777180243445,-702.0,0.00015476,2]
[421155879,1777180243455,-233.0,0.00015476,2]
[421155880,1777180243465,-154.0,0.00015476,2]
[421155881,1777180243475,-4460.0,0.00015476,2]
[421155882,1777180243484,-485.0,0.00015476,2]
[421155883,1777180243494,-661.0,0.00015476,2]
[421155884,1777180243503,-283.8451054,0.0001552,2]
[421155885,1777180243512,-192.11,0.00015542,2]
[421155886,1777180243522,-160.49170148,0.00015615,2]
[421155887,1777180243532,-399502.22521493,0.00015616,2]
[421155889,1777180243541,-396.28568223,0.00015675,2]
[421155890,1777180243551,-273.855,0.00015695,2]
[421155891,1777180243560,-1409.0,0.00015695,2]
[421155892,1777180243569,-2211.0,0.00015695,2]
[421155893,1777180243578,-646.0,0.00015695,2]
[421155894,1777180243587,-442.0,0.00015695,2]
[421155895,1777180243596,-185.0,0.00015695,2]
[421155896,1777180243606,-227.04,0.00015747,2]
[421155897,1777180243615,-7181.875904,0.00015747,2]
[421155898,1777180243625,-151.0,0.00015797,2]
[421155899,1777180243634,-537.6845,0.00015797,2]
[421155900,1777180243644,-242.90876488,0.00015797,2]
[421155901,1777180243653,-162.380719,0.00015797,2]
[421155902,1777180243663,-445.202766,0.00015797,2]
[421155903,1777180243673,-156.587,0.00015797,2]
[421155904,1777180243682,-2150.738,0.00015797,2]
[421155905,1777180243692,-537.6845,0.00015797,2]
[421155907,1777180243702,-557.5788265,0.00015852,2]
[421155909,1777180243711,-23671.0,0.000159,2]
[421155910,1777180243720,-578.20924308,0.00015907,2]
[421155911,1777180243730,-2355.88202836,0.00015954,2]
[421155912,1777180243740,-210.12376314,0.00015956,14]
[421155913,1777180243749,-599.60298507,0.00015962,2]
[421155915,1777180243760,-500.0,0.00016,2]
[421155917,1777180243769,-2273.51973812,0.00016,2]
[421155919,1777180243778,-150.0,0.00016,2]
[421155921,1777180243788,-621.78829552,0.00016017,2]
[421155923,1777180243798,-15755.567004,0.00016069,2]
[421155925,1777180243807,-644.79446246,0.00016072,2]
[421155927,1777180243816,-272.45,0.00016096,2]
[421155929,1777180243826,-501.22232972,0.00016103,2]
[421155931,1777180243835,-501.08088509,0.00016103,2]
[421155933,1777180243844,-155.0,0.00016109,2]
[421155935,1777180243853,-428.27,0.00016116,2]
[421155937,1777180243862,-428.27,0.00016116,2]
[421155939,1777180243871,-428.27,0.00016116,2]
[421155941,1777180243880,-428.27,0.00016116,2]
[421155943,1777180243890,-428.27,0.00016116,2]
[421155945,1777180243900,-428.27,0.00016116,2]
[421155946,1777180243908,-428.27,0.00016116,2]
[421155948,1777180243918,-428.27,0.00016116,2]
[421155950,1777180243927,-428.27,0.00016116,2]
[421155952,1777180243937,-428.26792853,0.00016116,2]
[421155954,1777180243946,-668.65185757,0.00016127,2]
[421155956,1777180243956,-2784.62400968,0.0001617,2]
[421155958,1777180243965,-693.3919763,0.00016182,2]
[421155960,1777180243974,-227.67,0.00016184,2]
[421155962,1777180243983,-2273.51973812,0.000162,2]
[421155964,1777180243992,-278.87588206,0.00016235,2]
[421155966,1777180244001,-719.04747942,0.00016237,2]
[421155968,1777180244015,-745.65223616,0.00016292,2]
[421155970,1777180244025,-2273.51973812,0.000163,2]
[421155972,1777180244034,-153.73792017,0.00016345,2]
[421155974,1777180244043,-195.80528734,0.00016345,2]
[421155976,1777180244052,-461.67526834,0.00016345,2]
[421155978,1777180244062,-2230.315306,0.00016345,2]
[421155979,1777180244071,-557.5788265,0.00016345,2]
[421155981,1777180244080,-28629.72573774,0.00016346,2]
[421156021,1777180244488,-3432.40156961,0.00016346,2]
[421156023,1777180244498,-773.2413689,0.00016347,2]
[421156025,1777180244507,-323.705,0.00016385,2]
[421156027,1777180244517,-801.85129955,0.00016402,2]
[421156029,1777180244526,-490.3,0.00016438,2]
[421156031,1777180244535,-600.56982026,0.00016438,2]
[421156033,1777180244544,-353.099181,0.00016438,2]
[421156034,1777180244553,-353.099181,0.00016438,2]
[421156036,1777180244562,-353.099181,0.00016438,2]
[421156038,1777180244572,-353.099181,0.00016438,2]
[421156040,1777180244581,-353.099181,0.00016438,2]
[421156042,1777180244590,-353.099181,0.00016438,2]
[421156044,1777180244600,-353.099181,0.00016438,2]
[421156045,1777180244610,-353.099181,0.00016438,2]
[421156047,1777180244619,-353.099181,0.00016438,2]
[421156049,1777180244629,-353.099181,0.00016438,2]
[421156051,1777180244638,-353.099181,0.00016438,2]
[421156053,1777180244647,-353.099181,0.00016438,2]
[421156055,1777180244656,-353.099181,0.00016438,2]
[421156057,1777180244666,-353.099181,0.00016438,2]
[421156059,1777180244675,-353.099181,0.00016438,2]
[421156060,1777180244684,-353.099181,0.00016438,2]
[421156062,1777180244693,-353.099181,0.00016438,2]
[421156064,1777180244703,-353.099181,0.00016438,2]
[421156066,1777180244712,-353.099181,0.00016438,2]
[421156068,1777180244721,-353.09918,0.00016438,2]
[421156070,1777180244730,-118.79530232,0.00016446,2]
[421156072,1777180244742,-199.06469768,0.00016446,2]
[421156074,1777180244751,-831.51979763,0.00016457,2]
[421156075,1777180244760,-1184.0,0.00016476,2]
[421156077,1777180244769,-702.0,0.00016476,2]
[421156079,1777180244778,-233.0,0.00016476,2]
[421156081,1777180244788,-154.0,0.00016476,2]
[421156083,1777180244797,-4460.0,0.00016476,2]
[421156085,1777180244807,-942.33417593,0.00016476,2]
[421156087,1777180244816,-485.0,0.00016476,2]
[421156088,1777180244824,-661.0,0.00016476,2]
[421156090,1777180244833,-1282.0,0.0001648,2]
[421156092,1777180244843,-160.0,0.000165,4]
[421156094,1777180244853,-2273.51973812,0.000165,2]
[421156096,1777180244862,-862.28603014,0.00016512,2]
[421156097,1777180244871,-305.63673365,0.00016521,3]
[421156099,1777180244881,-188.30017011,0.00016542,2]
[421156101,1777180244890,-894.19061326,0.00016567,2]
[421156103,1777180244899,-174.52484739,0.00016586,30]
[421156105,1777180244909,-2273.51973812,0.000166,2]
[421156107,1777180244918,-927.27566595,0.00016622,2]
[421156109,1777180244927,-961.58486559,0.00016677,2]
[421156110,1777180244936,-155.90112371,0.00016678,2]
[421156112,1777180244945,-174.52484739,0.00016696,30]
[421156114,1777180244954,-151.0,0.000167,2]
[421156116,1777180244964,-151.0,0.000167,2]
[421156118,1777180244972,-490.3,0.00016712,2]
[421156120,1777180244982,-997.16350561,0.00016732,2]
[421156122,1777180244991,-1000.0,0.00016752,2]
[421156124,1777180245000,-492.0,0.00016752,2]
[421156125,1777180245009,-1282.0,0.00016754,2]
[421156127,1777180245018,-288.02,0.00016796,2]
[421156129,1777180245027,-635.73,0.00016796,2]
[421156131,1777180245037,-455.36,0.00016796,2]
[421156133,1777180245046,-2273.51973812,0.000168,2]
[421156135,1777180245057,-174.52484739,0.00016806,30]
[421156137,1777180245066,-273.0,0.00016871,2]
[421156138,1777180245077,-52639.06559841,0.0001688,2]
[421156140,1777180245086,-478.75725327,0.00016893,2]
[421156142,1777180245096,-2312.83697232,0.00016893,2]
[421156144,1777180245110,-578.20924308,0.00016893,2]
[421156146,1777180245120,-3043.4,0.000169,2]
[421156148,1777180245131,-5238.50555847,0.000169,2]
[421156150,1777180245140,-174.52484739,0.00016916,30]
[421156152,1777180245150,-158.1722119,0.00016973,2]
[421156154,1777180245159,-260.51214069,0.00016973,2]
[421156156,1777180245169,-300.30470059,0.00016973,2]
[421156158,1777180245178,-226.31466761,0.00016973,2]
[421156160,1777180245190,-273.68533239,0.00016973,2]
[421156161,1777180245200,-500.0,0.00016973,2]
[421156163,1777180245209,-500.0,0.00016973,2]
[421156165,1777180245220,-501.09145393,0.00016973,2]
[421156167,1777180245230,-215.91225803,0.00016973,2]
[421156169,1777180245239,-500.0,0.00016973,2]
[421156171,1777180245251,-235.19332481,0.00016973,2]
[421156172,1777180245260,-500.0,0.00016973,2]
[421156174,1777180245270,-504.63672343,0.00016973,2]
[421156176,1777180245279,-500.0,0.00016973,2]
[421156178,1777180245288,-500.0,0.00016973,2]
[421156180,1777180245297,-490.3,0.00016986,2]
[421156182,1777180245307,-189313.33819308,0.00017,2]
[421156184,1777180245318,-3742.87651179,0.00017,2]
[421156199,1777180245485,-4652.41294678,0.00017,2]
[421156201,1777180246023,-521.0,0.00013151,2]
[421156202,1777180246032,-29765.95355542,0.00017,2]
[421156203,1777180246043,-2842.28092735,0.00017,2]
[421156204,1777180246058,-6474.29389308,0.00017,2]
[421156205,1777180246069,-953.87845248,0.00017,2]
[421156206,1777180246080,-336.33341679,0.00017,2]
[421156207,1777180246098,-10245.18406593,0.00017,2]
[421156208,1777180246109,-673.32755196,0.00017,2]
[421156209,1777180246120,-42955.97324304,0.00017,2]
[421156225,1777180246867,-10659.93712113,0.00017,2]
[421156227,1777180246922,-749.403357,0.00017,2]
[421156229,1777180246933,-5981.32188601,0.00017,2]
[421156232,1777180247135,-2053.92499483,0.00017,2]
[421156233,1777180247147,-232463.28879086,0.00017,2]
[421156234,1777180247189,-3008.28133464,0.00017,2]
[421156235,1777180247199,-14018.41377087,0.00017,2]
[421156236,1777180247211,-844.73245008,0.00017,2]
[421156237,1777180247222,-29248.02481199,0.00017,2]
[421156335,1777181438840,-153.46513959,0.00013672,2]
[421156337,1777181438850,-373.72459835,0.00013672,2]
[421156345,1777181438921,-236.27540165,0.00013672,2]
[421156347,1777181438930,-226.68283029,0.00013698,2]
[421156349,1777181438940,-1000.0,0.00013699,2]
[421156351,1777181438949,-192.0,0.00013808,3]
[421156353,1777181438958,-2258.43144198,0.00015351,2]
[421156355,1777181438967,-181.08886471,0.00015672,2]
[421156357,1777181438977,-537.6845,0.00015758,2]
[421156359,1777181438985,-2150.738,0.00015758,2]
[421156361,1777181438994,-300.0,0.00015764,2]
[421156363,1777181439003,-2211.0,0.00015767,2]
[421156365,1777181439013,-646.0,0.00015767,2]
[421156366,1777181439022,-1409.0,0.00015767,2]
[421156368,1777181439031,-497.086,0.00015767,2]
[421156370,1777181439040,-185.0,0.00015767,2]
[421156372,1777181439050,-169.83672099,0.00015776,2]
[421156374,1777181439059,-127.56950518,0.00015813,2]
[421156377,1777181439078,-26.28738441,0.00015813,2]
[421156379,1777181439087,-905.56524504,0.00015854,2]
[421156381,1777181439099,-1212.93475496,0.00015854,2]
[421156383,1777181439108,-500.0,0.00015854,2]
[421156385,1777181439118,-496.47127164,0.00015866,2]
[421156387,1777181439127,-683.70678059,0.00015866,2]
[421156389,1777181439136,-3432.0921363,0.00015876,2]
[421156391,1777181439147,-5040.21828236,0.00015876,2]
[421156393,1777181439155,-5000.0,0.00015876,2]
[421156395,1777181439164,-5000.0,0.00015876,2]
[421156397,1777181439173,-5000.0,0.00015876,2]
[421156399,1777181439182,-1818.81579049,0.00016,2]
[421156401,1777181439191,-397.5337516,0.00016,2]
[421156402,1777181439202,-1275.50354341,0.00016099,2]
[421156404,1777181439210,-2118.5,0.00016199,2]
[421156406,1777181439219,-500.0,0.00016199,2]
[421156408,1777181439228,-1818.81579049,0.000162,2]
[421156410,1777181439238,-1261.36675596,0.000163,2]
[421156512,1777181440547,-557.44903453,0.000163,2]
[421156513,1777181440557,-2230.315306,0.00016306,2]
[421156514,1777181440567,-383.267,0.00016347,2]
[421156515,1777181440577,-367.7,0.00016438,2]
[421156516,1777181440586,-169.83672095,0.00016463,2]
[421156517,1777181440595,-1818.81579049,0.000165,2]
[421156518,1777181440605,-1385.08304136,0.000166,2]
[421156806,1777182638452,-1047.57345457,0.00012804,2]
[421156807,1777182638507,-983.59412008,0.00012804,2]
[421156814,1777182640601,-308.86242535,0.00012804,2]
[421156815,1777182640611,-340.0,0.00012933,2]
[421156816,1777182640621,-162.79378646,0.00013032,2]
[421156817,1777182640630,-879.753877,0.00013195,2]
[421156834,1777182646409,-320.246123,0.00013195,2]
[421156835,1777182646418,-2688.4225,0.00013196,2]
[421156836,1777182646428,-232.51542689,0.00013233,14]
[421156837,1777182646438,-300.0,0.00013698,2]
[421156838,1777182646447,-1000.0,0.00013699,2]
[421156839,1777182646457,-2298.6511485,0.00013744,2]
[421156840,1777182646572,-479.84473846,0.00013744,2]
[421156841,1777182646681,-9.39824554,0.00013744,2]
[421156842,1777182646691,-162.0,0.00013918,3]
[421156843,1777182646701,-180.90934082,0.00014115,2]
[421156844,1777182646711,-2891.0462154,0.00014292,2]
[421156845,1777182646721,-1680.0,0.00014515,2]
[421156846,1777182646731,-300.0,0.00014811,2]
[421156847,1777182646741,-300.0,0.00014811,2]
[421156848,1777182646751,-300.0,0.00014811,2]
[421156849,1777182646761,-300.0,0.00014811,2]
[421156850,1777182646771,-300.0,0.00014811,2]
[421156851,1777182646780,-300.0,0.00014811,2]
[421156852,1777182646790,-300.0,0.00014811,2]
[421156853,1777182646800,-300.0,0.00014811,2]
[421156854,1777182646810,-300.0,0.00014811,2]
[421156855,1777182646819,-300.0,0.00014811,2]
[421156856,1777182646829,-300.0,0.00014811,2]
[421156857,1777182646839,-300.0,0.00014811,2]
[421156858,1777182646849,-300.0,0.00014811,2]
[421156859,1777182646859,-300.0,0.00014811,2]
[421156860,1777182646869,-300.0,0.00014811,2]
[421156861,1777182646879,-2998.01492537,0.0001484,2]
[421156862,1777182646888,-420.0,0.00015012,2]
[421156863,1777182646898,-192.09666802,0.00015031,2]
[421156864,1777182646909,-1941.96,0.00015069,2]
[421156865,1777182646919,-3108.94147761,0.00015388,2]
[421156866,1777182646930,-150.399,0.00015799,2]
[421156867,1777182646940,-150.572,0.00015799,2]
[421156868,1777182646950,-151.567,0.00015799,2]
[421156869,1777182646961,-172.99588704,0.00015865,2]
[421156870,1777182646972,-537.6845,0.00015865,2]
[421156871,1777182646982,-169.07635363,0.00015865,2]
[421156872,1777182646992,-445.202766,0.00015865,2]
[421156873,1777182647002,-537.6845,0.00015865,2]
[421156874,1777182647012,-2150.738,0.00015865,2]
[421156875,1777182647022,-500.0,0.00015875,2]
[421156877,1777182647271,-500.0,0.00015875,2]
[421156878,1777182647282,-557.5788265,0.0001592,2]
[421156879,1777182647292,-200.91,0.00015929,2]
[421156880,1777182647301,-3223.97231228,0.00015936,2]
[421156881,1777182647311,-2095.0,0.00015966,2]
[421156882,1777182647320,-578.20924308,0.00015975,2]
[421156883,1777182647329,-216.86637456,0.00016,2]
[421156884,1777182647339,-599.60298507,0.0001603,2]
[421156885,1777182647349,-621.78829552,0.00016085,2]
[421156886,1777182647358,-228.18,0.00016093,2]
[421156887,1777182647368,-300.0,0.000161,2]
[421156888,1777182647377,-644.79446246,0.0001614,2]
[421156889,1777182647386,-1941.96,0.00016165,2]
[421156890,1777182647396,-600.0,0.00016191,2]
[421156891,1777182647405,-668.65185757,0.00016195,2]
[421156892,1777182647414,-216.86637456,0.000162,2]
[421156893,1777182647424,-693.3919763,0.0001625,2]
[421156894,1777182647433,-179.30826167,0.00016264,2]
[421156895,1777182647443,-719.04747942,0.00016305,2]
[421156896,1777182647452,-817.06415256,0.0001634,2]
[421156897,1777182647461,-427.039,0.00016347,2]
[421156898,1777182647470,-745.65223616,0.0001636,2]
[421156899,1777182647480,-461.67526834,0.00016413,2]
[421156900,1777182647490,-547.69253568,0.00016413,2]
[421156901,1777182647499,-2230.315306,0.00016413,2]
[421156902,1777182647508,-773.2413689,0.00016415,2]
[421156903,1777182647518,-251.14,0.00016422,2]
[421156904,1777182647529,-337.0,0.00016438,2]
[421156905,1777182647537,-45578.91155664,0.0001644,2]
[421157204,1777183832331,-171.02632281,0.00012082,2]
[421157206,1777183832341,-5187.0,0.00012204,10]
[421157208,1777183832350,-592.0,0.00012204,2]
[421157210,1777183832360,-175.51885202,0.00012453,2]
[421157212,1777183832369,-328.98382875,0.00012578,2]
[421157213,1777183832378,-209.91823371,0.00012833,2]
[421157215,1777183832388,-294.0,0.00012999,2]
[421157217,1777183832397,-300.0,0.00012999,2]
[421157219,1777183832406,-45662.33998558,0.00013,2]
[421157221,1777183832415,-300.0,0.00013259,2]
[421157223,1777183832425,-300.0,0.00013259,2]
[421157225,1777183832434,-300.0,0.00013259,2]
[421157227,1777183832444,-300.0,0.00013259,2]
[421157229,1777183832453,-300.0,0.00013259,2]
[421157231,1777183832462,-300.0,0.00013259,2]
[421157233,1777183832471,-300.0,0.00013259,2]
[421157235,1777183832482,-300.0,0.00013259,2]
[421157237,1777183832492,-300.0,0.00013259,2]
[421157239,1777183832502,-191.3434857,0.00013259,2]
[421157491,1777183843715,-108.6565143,0.00013259,2]
[421157492,1777183843724,-300.0,0.00013259,2]
[421157493,1777183843733,-300.0,0.00013259,2]
[421157494,1777183843743,-300.0,0.00013259,2]
[421157495,1777183843751,-231.3434857,0.00013259,2]
[421157496,1777183843770,-68.6565143,0.00013259,2]
[421157497,1777183843779,-300.0,0.00013259,2]
[421157498,1777183843789,-600.0,0.00013523,2]
[421157499,1777183843798,-1560.4,0.00013598,2]
[421157500,1777183843807,-1780.13,0.00013698,2]
[421157501,1777183843816,-1780.13,0.00013698,2]
[421157502,1777183843825,-1780.13,0.00013698,2]
[421157503,1777183843834,-500.0,0.00013698,2]
[421157504,1777183843843,-500.0,0.00013698,2]
[421157505,1777183843853,-419.29489584,0.00013698,2]
[421157506,1777183843862,-305.09540366,0.00013698,2]
[421157507,1777183843872,-242.659287,0.00013698,2]
[421157508,1777183843881,-163.5038992,0.00013699,2]
[421157509,1777183843893,-256.2,0.00013699,2]
[421157510,1777183843904,-1080.2961008,0.00013699,2]
[421157511,1777183843913,-1500.0,0.00013699,2]
[421157512,1777183843923,-774.75435599,0.00013699,2]
[421157521,1777183846862,-725.24564401,0.00013699,2]
[421157522,1777183846872,-1500.0,0.00013699,2]
[421157523,1777183846882,-1833.96187,0.00013699,2]
[421157524,1777183846891,-1000.0,0.00013699,2]
[421157525,1777183846902,-159.0,0.00014,3]
[421157526,1777183846911,-235.42,0.00014066,2]
[421157527,1777183846921,-420.0,0.00014256,2]
[421157528,1777183846931,-207.11224539,0.00014453,2]
[421157529,1777183846941,-720.0,0.00014875,2]
[421157530,1777183846951,-500.0,0.00015069,2]
[421157531,1777183846960,-164.98867409,0.0001555,2]
[421157532,1777183846970,-375.42522337,0.0001555,2]
[421157533,1777183846985,-505.57477663,0.0001555,2]
[421157534,1777183846995,-881.0,0.0001555,2]
[421157535,1777183847004,-881.0,0.0001555,2]
[421157536,1777183847014,-881.0,0.0001555,2]
[421157537,1777183847024,-881.0,0.0001555,2]
[421157538,1777183847034,-881.0,0.0001555,2]
[421157539,1777183847045,-881.0,0.0001555,2]
[421157540,1777183847054,-663.55258399,0.0001555,2]
[421158027,1777185039031,-155.33,0.00010977,6]
[421158028,1777185039041,-1359.82768585,0.00013561,2]
[421158029,1777185039052,-56.11635449,0.00013561,2]
[421158030,1777185039061,-175.08118485,0.00013698,2]
[421158031,1777185039070,-1000.0,0.00013699,2]
[421158032,1777185039080,-300.0,0.0001397,2]
[421158033,1777185039089,-300.0,0.0001397,2]
[421158034,1777185039099,-163.0,0.0001397,2]
[421158035,1777185039108,-300.0,0.00013971,2]
[421158036,1777185039117,-300.0,0.00013971,2]
[421158037,1777185039126,-300.0,0.00013971,2]
[421158038,1777185039136,-300.0,0.00013971,2]
[421158039,1777185039144,-300.0,0.00013971,2]
[421158040,1777185039153,-300.0,0.00013971,2]